[Event "Early-Titled-Tuesday-Blitz-March-26-2024"]
[Site "Chess.com"]
[Date "2024.03.26"]
[Round "6"]
[White "bazar-wokzal"]
[Black "DeTimmerman"]
[Result "1-0"]
[WhiteElo "2577"]
[BlackElo "2734"]
[TimeControl "180+1"]
[EndTime "9:04:48 PDT"]
[Termination "bazar-wokzal won by resignation"]

1. e4 {[%clk 0:03:00.9]} 1... e5 {[%clk 0:03:00.2]} 2. Bc4 {[%clk 0:02:57.3]}
2... Nf6 {[%clk 0:02:59.7]} 3. d3 {[%clk 0:02:57.2]} 3... c6 {[%clk 0:02:58.1]}
4. Nf3 {[%clk 0:02:56.6]} 4... d5 {[%clk 0:02:58.5]} 5. Bb3 {[%clk 0:02:56.8]}
5... Bd6 {[%clk 0:02:58.2]} 6. Nc3 {[%clk 0:02:57.1]} 6... d4 {[%clk 0:02:57.7]}
7. Ne2 {[%clk 0:02:57.1]} 7... O-O {[%clk 0:02:57.9]} 8. c3 {[%clk 0:02:57.2]}
8... c5 {[%clk 0:02:56.7]} 9. O-O {[%clk 0:02:56.6]} 9... Nc6 {[%clk 0:02:56.7]}
10. cxd4 {[%clk 0:02:56.6]} 10... cxd4 {[%clk 0:02:56.4]} 11. Ng3 {[%clk
0:02:57.1]} 11... Be6 {[%clk 0:02:56.7]} 12. Bxe6 {[%clk 0:02:51.9]} 12... fxe6
{[%clk 0:02:57.6]} 13. Qb3 {[%clk 0:02:51]} 13... Qd7 {[%clk 0:02:53]} 14. Bd2
{[%clk 0:02:51.3]} 14... Kh8 {[%clk 0:02:45.1]} 15. Rac1 {[%clk 0:02:50]} 15...
Rfc8 {[%clk 0:02:41.2]} 16. Rc2 {[%clk 0:02:48.4]} 16... Nd8 {[%clk 0:02:38.3]}
17. Rfc1 {[%clk 0:02:47.9]} 17... Rxc2 {[%clk 0:02:37.8]} 18. Qxc2 {[%clk
0:02:45.7]} 18... Nc6 {[%clk 0:02:33.9]} 19. a3 {[%clk 0:02:45]} 19... Rc8
{[%clk 0:02:33.2]} 20. Qa4 {[%clk 0:02:37.7]} 20... a6 {[%clk 0:02:25.6]} 21. h3
{[%clk 0:02:34.8]} 21... h6 {[%clk 0:02:23.8]} 22. Nh2 {[%clk 0:02:23.8]} 22...
Ne7 {[%clk 0:02:13.5]} 23. Qxd7 {[%clk 0:02:18.4]} 23... Rxc1+ {[%clk
0:02:12.9]} 24. Bxc1 {[%clk 0:02:18.4]} 24... Nxd7 {[%clk 0:02:13.8]} 25. Kf1
{[%clk 0:02:09.7]} 25... Kg8 {[%clk 0:02:13.9]} 26. Ke2 {[%clk 0:02:09.8]} 26...
Kf7 {[%clk 0:02:14.2]} 27. Kd1 {[%clk 0:02:05.4]} 27... b5 {[%clk 0:02:14.5]}
28. Kc2 {[%clk 0:02:03.7]} 28... Nc6 {[%clk 0:02:07]} 29. Ne2 {[%clk 0:02:03.5]}
29... g5 {[%clk 0:02:05.6]} 30. g3 {[%clk 0:01:59.3]} 30... Kg6 {[%clk
0:02:05.7]} 31. f4 {[%clk 0:01:49.7]} 31... gxf4 {[%clk 0:01:54.9]} 32. gxf4
{[%clk 0:01:49.8]} 32... exf4 {[%clk 0:01:47.9]} 33. Bxf4 {[%clk 0:01:48.9]}
33... Bxf4 {[%clk 0:01:30.4]} 34. Nxf4+ {[%clk 0:01:48.8]} 34... Kf7 {[%clk
0:01:22.9]} 35. Ng4 {[%clk 0:01:48.2]} 35... e5 {[%clk 0:01:23]} 36. Nxh6+
{[%clk 0:01:46.1]} 36... Kg7 {[%clk 0:01:23.2]} 37. Nf5+ {[%clk 0:01:45.9]}
37... Kf6 {[%clk 0:01:23.6]} 38. Nd5+ {[%clk 0:01:46]} 38... Kg5 {[%clk
0:01:24]} 39. Nc7 {[%clk 0:01:45.9]} 39... Ncb8 {[%clk 0:01:12.6]} 40. h4+
{[%clk 0:01:45.5]} 40... Kg4 {[%clk 0:01:12.5]} 41. Ne6 {[%clk 0:01:32.4]} 41...
Nf6 {[%clk 0:01:12.4]} 42. Kb3 {[%clk 0:01:25.3]} 42... Kf3 {[%clk 0:01:07.8]}
43. Ng5+ {[%clk 0:01:19.6]} 43... Ke2 {[%clk 0:01:07.3]} 44. Kc2 {[%clk
0:01:19.5]} 44... Nbd7 {[%clk 0:00:57]} 45. Nf7 {[%clk 0:01:19.5]} 45... Nh5
{[%clk 0:00:55.5]} 46. Ne7 {[%clk 0:01:00.5]} 46... Nf4 {[%clk 0:00:53.2]} 47.
h5 {[%clk 0:00:54.4]} 47... Nxd3 {[%clk 0:00:48.7]} 48. h6 {[%clk 0:00:54.6]}
48... Ne1+ {[%clk 0:00:49]} 49. Kb3 {[%clk 0:00:48.4]} 49... Nf6 {[%clk
0:00:49.9]} 50. Nd5 {[%clk 0:00:45.1]} 50... Nh7 {[%clk 0:00:49.6]} 51. Nxe5
{[%clk 0:00:43.6]} 51... d3 {[%clk 0:00:50.1]} 52. Nf4+ {[%clk 0:00:42.6]} 52...
Ke3 {[%clk 0:00:49.6]} 53. Nfxd3 {[%clk 0:00:41.4]} 53... Nxd3 {[%clk
0:00:48.1]} 54. Nxd3 {[%clk 0:00:42.3]} 54... Kxe4 {[%clk 0:00:49]} 55. Nc5+
{[%clk 0:00:42.3]} 55... Kd5 {[%clk 0:00:49.2]} 56. Nxa6 {[%clk 0:00:42.5]}
56... Kc6 {[%clk 0:00:49.6]} 57. Nb4+ {[%clk 0:00:42.5]} 57... Kc5 {[%clk
0:00:49.9]} 58. Nd3+ {[%clk 0:00:42.7]} 58... Kd4 {[%clk 0:00:49.7]} 59. Nf4
{[%clk 0:00:42.5]} 59... Kc5 {[%clk 0:00:49.5]} 60. Ne6+ {[%clk 0:00:42.5]}
60... Kb6 {[%clk 0:00:48.6]} 61. Kb4 {[%clk 0:00:42.2]} 61... Nf6 {[%clk
0:00:49.3]} 62. Ng5 {[%clk 0:00:42.3]} 62... Nd5+ {[%clk 0:00:48.2]} 63. Kb3
{[%clk 0:00:42.7]} 1-0

[Event "Early-Titled-Tuesday-Blitz-March-26-2024"]
[Site "Chess.com"]
[Date "2024.03.26"]
[Round "6"]
[White "Harry_Rakkel"]
[Black "Chessmissile07"]
[Result "0-1"]
[WhiteElo "2732"]
[BlackElo "2925"]
[TimeControl "180+1"]
[EndTime "9:04:49 PDT"]
[Termination "Chessmissile07 won by checkmate"]

1. e4 {[%clk 0:02:59.3]} 1... a6 {[%clk 0:02:59.4]} 2. d4 {[%clk 0:02:57.9]}
2... e6 {[%clk 0:02:59.3]} 3. c3 {[%clk 0:02:49.6]} 3... d5 {[%clk 0:02:59.2]}
4. e5 {[%clk 0:02:49.4]} 4... Bd7 {[%clk 0:02:58.2]} 5. h4 {[%clk 0:02:47.7]}
5... c5 {[%clk 0:02:57.5]} 6. h5 {[%clk 0:02:47]} 6... Qb6 {[%clk 0:02:55.4]} 7.
a3 {[%clk 0:02:41.4]} 7... Bb5 {[%clk 0:02:44.7]} 8. Nf3 {[%clk 0:02:31]} 8...
Bxf1 {[%clk 0:02:41.9]} 9. Kxf1 {[%clk 0:02:30.6]} 9... Nc6 {[%clk 0:02:39.7]}
10. h6 {[%clk 0:02:26.6]} 10... Nxh6 {[%clk 0:02:39.5]} 11. Bxh6 {[%clk
0:02:25.6]} 11... gxh6 {[%clk 0:02:40.4]} 12. b4 {[%clk 0:02:19.3]} 12... cxd4
{[%clk 0:02:38.4]} 13. cxd4 {[%clk 0:02:19]} 13... Rc8 {[%clk 0:02:29.1]} 14.
Kg1 {[%clk 0:02:02]} 14... Bg7 {[%clk 0:02:02.2]} 15. Rh3 {[%clk 0:01:54.9]}
15... Ne7 {[%clk 0:01:58.1]} 16. Nbd2 {[%clk 0:01:52.9]} 16... O-O {[%clk
0:01:55.1]} 17. Nb3 {[%clk 0:01:50.6]} 17... Ng6 {[%clk 0:01:55.1]} 18. Nc5
{[%clk 0:01:42.3]} 18... Qc6 {[%clk 0:01:43.4]} 19. a4 {[%clk 0:01:35]} 19... f6
{[%clk 0:01:08.8]} 20. b5 {[%clk 0:01:33.3]} 20... axb5 {[%clk 0:01:05.5]} 21.
axb5 {[%clk 0:01:34.2]} 21... Qe8 {[%clk 0:01:05.4]} 22. Nxb7 {[%clk 0:01:30.1]}
22... Qe7 {[%clk 0:01:03.7]} 23. Nd6 {[%clk 0:01:19.7]} 23... Rb8 {[%clk
0:01:02.9]} 24. Rg3 {[%clk 0:01:17.6]} 24... fxe5 {[%clk 0:00:54]} 25. dxe5
{[%clk 0:01:16.3]} 25... Rxf3 {[%clk 0:00:42]} 26. Rxf3 {[%clk 0:00:53.9]} 26...
Nxe5 {[%clk 0:00:36.8]} 27. Rfa3 {[%clk 0:00:46.5]} 27... Qxd6 {[%clk 0:00:35]}
28. Ra8 {[%clk 0:00:47]} 28... Bf8 {[%clk 0:00:28.2]} 29. R1a6 {[%clk
0:00:42.5]} 29... Rb6 {[%clk 0:00:25.2]} 30. Qd4 {[%clk 0:00:34.4]} 30... Nd7
{[%clk 0:00:24.8]} 31. Rxf8+ {[%clk 0:00:25.3]} 31... Kxf8 {[%clk 0:00:20.6]}
32. Qh8+ {[%clk 0:00:25.1]} 32... Ke7 {[%clk 0:00:17.7]} 33. Qxh7+ {[%clk
0:00:09.5]} 33... Kd8 {[%clk 0:00:17.3]} 34. Ra7 {[%clk 0:00:07.8]} 34... Rxb5
{[%clk 0:00:08.7]} 35. Qg8+ {[%clk 0:00:07.7]} 35... Nf8 {[%clk 0:00:09.1]} 36.
Qf7 {[%clk 0:00:07.7]} 36... Rb1# {[%clk 0:00:08.7]} 0-1

[Event "Early-Titled-Tuesday-Blitz-March-26-2024"]
[Site "Chess.com"]
[Date "2024.03.26"]
[Round "6"]
[White "Abund"]
[Black "Winner_7777"]
[Result "0-1"]
[WhiteElo "2788"]
[BlackElo "2597"]
[TimeControl "180+1"]
[EndTime "9:04:50 PDT"]
[Termination "Winner_7777 won by resignation"]

1. d4 {[%clk 0:03:00.9]} 1... d5 {[%clk 0:03:00.4]} 2. c4 {[%clk 0:03:01.4]}
2... e6 {[%clk 0:03:00.8]} 3. Nf3 {[%clk 0:03:01.1]} 3... c6 {[%clk 0:03:01.2]}
4. e3 {[%clk 0:03:00.2]} 4... Bd6 {[%clk 0:03:00.6]} 5. b3 {[%clk 0:02:52.8]}
5... f5 {[%clk 0:02:59.8]} 6. Be2 {[%clk 0:02:49.2]} 6... Nf6 {[%clk 0:03:00]}
7. O-O {[%clk 0:02:49.3]} 7... Qe7 {[%clk 0:03:00.1]} 8. a4 {[%clk 0:02:47.6]}
8... O-O {[%clk 0:02:38.7]} 9. Ba3 {[%clk 0:02:46.4]} 9... b6 {[%clk 0:02:33.3]}
10. a5 {[%clk 0:02:38.1]} 10... Bb7 {[%clk 0:02:26.6]} 11. Ne5 {[%clk
0:02:28.1]} 11... c5 {[%clk 0:02:21.5]} 12. Nc3 {[%clk 0:02:28.1]} 12... Nbd7
{[%clk 0:02:17.9]} 13. cxd5 {[%clk 0:02:02.5]} 13... Nxe5 {[%clk 0:02:08.6]} 14.
dxe5 {[%clk 0:02:02.6]} 14... Bxe5 {[%clk 0:02:09.5]} 15. Rc1 {[%clk 0:02:01.8]}
15... Nxd5 {[%clk 0:01:48.9]} 16. Nxd5 {[%clk 0:01:50.5]} 16... Bxd5 {[%clk
0:01:49.8]} 17. Bf3 {[%clk 0:01:47.1]} 17... Rad8 {[%clk 0:01:45.8]} 18. Bxd5
{[%clk 0:01:40.2]} 18... exd5 {[%clk 0:01:46.7]} 19. g3 {[%clk 0:01:35.9]} 19...
d4 {[%clk 0:01:35.6]} 20. Qd3 {[%clk 0:01:22.6]} 20... dxe3 {[%clk 0:01:35.5]}
21. Qxe3 {[%clk 0:01:22.6]} 21... f4 {[%clk 0:01:00.6]} 22. gxf4 {[%clk
0:00:57.9]} 22... Rxf4 {[%clk 0:01:01.5]} 23. Rfe1 {[%clk 0:00:58.1]} 23... Qg5+
{[%clk 0:01:01.2]} 24. Kh1 {[%clk 0:00:40.7]} 24... Qh5 {[%clk 0:00:33.5]} 25.
Rc4 {[%clk 0:00:20.7]} 25... Re4 {[%clk 0:00:20.5]} 26. h3 {[%clk 0:00:09.2]}
26... Rxe3 {[%clk 0:00:19.7]} 27. Rxe3 {[%clk 0:00:10.1]} 27... Rd1+ {[%clk
0:00:19.3]} 28. Kg2 {[%clk 0:00:10.7]} 28... Bd4 {[%clk 0:00:17.8]} 29. Rf3
{[%clk 0:00:06.2]} 29... Qg5+ {[%clk 0:00:17.7]} 30. Rg3 {[%clk 0:00:05.9]}
30... Qd5+ {[%clk 0:00:18]} 31. Rf3 {[%clk 0:00:04.7]} 31... Rg1+ {[%clk
0:00:17.6]} 32. Kxg1 {[%clk 0:00:04.7]} 32... Qxf3 {[%clk 0:00:18.2]} 33. Rxd4
{[%clk 0:00:05.5]} 33... cxd4 {[%clk 0:00:18.4]} 34. Bc1 {[%clk 0:00:06.2]}
34... d3 {[%clk 0:00:18.2]} 35. Bd2 {[%clk 0:00:06.5]} 35... Qe2 {[%clk
0:00:18.2]} 0-1

[Event "Early-Titled-Tuesday-Blitz-March-26-2024"]
[Site "Chess.com"]
[Date "2024.03.26"]
[Round "6"]
[White "Savagelittlemole"]
[Black "Mindhunter08"]
[Result "1-0"]
[WhiteElo "2493"]
[BlackElo "2653"]
[TimeControl "180+1"]
[EndTime "9:04:50 PDT"]
[Termination "Savagelittlemole won by resignation"]

1. e4 {[%clk 0:03:00.9]} 1... e5 {[%clk 0:02:57.5]} 2. Nf3 {[%clk 0:03:00.5]}
2... Nc6 {[%clk 0:02:58.1]} 3. Bc4 {[%clk 0:03:00.2]} 3... Nf6 {[%clk
0:02:58.3]} 4. d3 {[%clk 0:02:59.2]} 4... Bc5 {[%clk 0:02:58.1]} 5. O-O {[%clk
0:02:58.5]} 5... O-O {[%clk 0:02:58.3]} 6. a4 {[%clk 0:02:58]} 6... a5 {[%clk
0:02:54.9]} 7. h3 {[%clk 0:02:56.9]} 7... d5 {[%clk 0:02:52.3]} 8. exd5 {[%clk
0:02:56.4]} 8... Nxd5 {[%clk 0:02:53.2]} 9. Re1 {[%clk 0:02:55.2]} 9... Nb6
{[%clk 0:02:35.7]} 10. Bb3 {[%clk 0:02:53.1]} 10... Re8 {[%clk 0:02:16.5]} 11.
Nc3 {[%clk 0:02:41.6]} 11... Be6 {[%clk 0:02:13.3]} 12. Bxe6 {[%clk 0:02:41.3]}
12... Rxe6 {[%clk 0:02:14.2]} 13. Ne4 {[%clk 0:02:35.3]} 13... Be7 {[%clk
0:02:09.7]} 14. Nfg5 {[%clk 0:02:34.1]} 14... Rg6 {[%clk 0:02:06.1]} 15. Qh5
{[%clk 0:02:31.1]} 15... h6 {[%clk 0:01:57.1]} 16. Nf3 {[%clk 0:02:28.6]} 16...
Qd7 {[%clk 0:01:43.3]} 17. Bd2 {[%clk 0:02:21.7]} 17... Re8 {[%clk 0:01:36.3]}
18. Bc3 {[%clk 0:02:20.5]} 18... Bd6 {[%clk 0:01:32.3]} 19. Nxd6 {[%clk
0:02:14.3]} 19... cxd6 {[%clk 0:01:31.1]} 20. Bd2 {[%clk 0:02:01.7]} 20... Nd5
{[%clk 0:01:25.1]} 21. Nh4 {[%clk 0:02:00.4]} 21... Qxh3 {[%clk 0:01:23.1]} 22.
Qxg6 {[%clk 0:01:52.7]} 22... Qxh4 {[%clk 0:01:12.2]} 23. Qe4 {[%clk 0:01:48.9]}
23... Qxe4 {[%clk 0:01:07.2]} 24. dxe4 {[%clk 0:01:49.8]} 24... Nf6 {[%clk
0:00:56.6]} 25. f3 {[%clk 0:01:48.8]} 25... Nd4 {[%clk 0:00:54.9]} 26. Rac1
{[%clk 0:01:43.4]} 26... b6 {[%clk 0:00:53.4]} 27. Be3 {[%clk 0:01:41]} 27...
Nc6 {[%clk 0:00:53.4]} 28. Red1 {[%clk 0:01:38.6]} 28... Rd8 {[%clk 0:00:47]}
29. b3 {[%clk 0:01:28.9]} 29... d5 {[%clk 0:00:33.2]} 30. exd5 {[%clk
0:01:28.7]} 30... Nxd5 {[%clk 0:00:31.2]} 31. Bf2 {[%clk 0:01:23.9]} 31... Kh7
{[%clk 0:00:22.5]} 32. c4 {[%clk 0:01:18.9]} 32... Nf4 {[%clk 0:00:22.1]} 33.
Rxd8 {[%clk 0:01:18.4]} 33... Ne2+ {[%clk 0:00:17.2]} 34. Kf1 {[%clk 0:01:16.8]}
34... Nxc1 {[%clk 0:00:18.1]} 35. Rd6 {[%clk 0:01:14]} 35... Nb4 {[%clk
0:00:17.5]} 36. Rxb6 {[%clk 0:01:08.4]} 36... Nxb3 {[%clk 0:00:17.1]} 37. c5
{[%clk 0:01:08.1]} 37... Nd2+ {[%clk 0:00:15.6]} 38. Ke2 {[%clk 0:01:04]} 38...
Nc4 {[%clk 0:00:16]} 39. Rb7 {[%clk 0:01:01.2]} 39... f5 {[%clk 0:00:14.5]} 40.
Be1 {[%clk 0:01:00.8]} 40... Nc6 {[%clk 0:00:10.6]} 41. Kd3 {[%clk 0:00:55.4]}
41... Na3 {[%clk 0:00:08.8]} 42. Rb6 {[%clk 0:00:49.7]} 42... Nd4 {[%clk
0:00:05.3]} 43. c6 {[%clk 0:00:41.3]} 43... Nac2 {[%clk 0:00:03.5]} 44. c7
{[%clk 0:00:34.1]} 44... Nxe1+ {[%clk 0:00:03.2]} 45. Kd2 {[%clk 0:00:34.1]}
45... Nexf3+ {[%clk 0:00:02.4]} 46. gxf3 {[%clk 0:00:34.3]} 46... Nxf3+ {[%clk
0:00:03.3]} 47. Ke3 {[%clk 0:00:33.8]} 1-0

[Event "Early-Titled-Tuesday-Blitz-March-26-2024"]
[Site "Chess.com"]
[Date "2024.03.26"]
[Round "6"]
[White "alekroth65"]
[Black "AnaKuchava"]
[Result "1-0"]
[WhiteElo "2391"]
[BlackElo "2139"]
[TimeControl "180+1"]
[EndTime "9:04:51 PDT"]
[Termination "alekroth65 won on time"]

1. d4 {[%clk 0:03:00.9]} 1... d5 {[%clk 0:02:59.6]} 2. c4 {[%clk 0:03:00.7]}
2... e6 {[%clk 0:02:56.4]} 3. Nf3 {[%clk 0:03:01.2]} 3... Nf6 {[%clk 0:02:55.9]}
4. Bg5 {[%clk 0:03:01.6]} 4... Be7 {[%clk 0:02:56]} 5. e3 {[%clk 0:03:01.9]}
5... O-O {[%clk 0:02:55.8]} 6. Nc3 {[%clk 0:03:01]} 6... h6 {[%clk 0:02:55.1]}
7. Bxf6 {[%clk 0:03:01.1]} 7... Bxf6 {[%clk 0:02:55.3]} 8. Qd2 {[%clk
0:03:00.2]} 8... c5 {[%clk 0:02:46.4]} 9. cxd5 {[%clk 0:02:58.5]} 9... cxd4
{[%clk 0:02:43.2]} 10. Nxd4 {[%clk 0:02:55.7]} 10... exd5 {[%clk 0:02:42.1]} 11.
Be2 {[%clk 0:02:52.6]} 11... Nc6 {[%clk 0:02:41.9]} 12. O-O {[%clk 0:02:50.9]}
12... Nxd4 {[%clk 0:02:38.2]} 13. exd4 {[%clk 0:02:51.8]} 13... Be6 {[%clk
0:02:30.3]} 14. Bf3 {[%clk 0:02:50.4]} 14... Rc8 {[%clk 0:02:27.3]} 15. Rfe1
{[%clk 0:02:44.7]} 15... Rc4 {[%clk 0:02:23.2]} 16. Ne2 {[%clk 0:02:21.7]} 16...
Qb6 {[%clk 0:02:17.9]} 17. b3 {[%clk 0:02:13.4]} 17... Rc7 {[%clk 0:02:00.8]}
18. Rac1 {[%clk 0:01:57]} 18... Rfc8 {[%clk 0:01:52]} 19. Rxc7 {[%clk
0:01:46.7]} 19... Rxc7 {[%clk 0:01:49.7]} 20. g3 {[%clk 0:01:44.2]} 20... a5
{[%clk 0:01:05]} 21. Nf4 {[%clk 0:01:28.6]} 21... Qxd4 {[%clk 0:00:20.4]} 22.
Qxd4 {[%clk 0:01:25.3]} 22... Bxd4 {[%clk 0:00:21.3]} 23. Nxe6 {[%clk
0:01:22.4]} 23... fxe6 {[%clk 0:00:22.2]} 24. Rxe6 {[%clk 0:01:21]} 24... Rc2
{[%clk 0:00:16.4]} 25. Bxd5 {[%clk 0:01:17.5]} 25... Bxf2+ {[%clk 0:00:12.9]}
26. Kg2 {[%clk 0:01:17.4]} 26... Kf8 {[%clk 0:00:13.2]} 27. Kf3 {[%clk
0:01:07.7]} 27... Rxa2 {[%clk 0:00:10.4]} 28. Bxb7 {[%clk 0:01:00.5]} 28... Bd4
{[%clk 0:00:08.1]} 29. h4 {[%clk 0:00:56.7]} 29... Bf6 {[%clk 0:00:07.2]} 30.
Bd5 {[%clk 0:00:50.8]} 30... a4 {[%clk 0:00:06.6]} 31. b4 {[%clk 0:00:42.3]}
31... Rb2 {[%clk 0:00:06.5]} 32. Rb6 {[%clk 0:00:39]} 32... a3 {[%clk
0:00:06.2]} 33. Rb7 {[%clk 0:00:34.2]} 33... a2 {[%clk 0:00:05.7]} 34. Ra7
{[%clk 0:00:28.9]} 34... Rxb4 {[%clk 0:00:04.4]} 35. Rxa2 {[%clk 0:00:27.4]}
35... Ke7 {[%clk 0:00:04.3]} 36. Be4 {[%clk 0:00:25.9]} 36... Kd6 {[%clk
0:00:04.4]} 37. Ra3 {[%clk 0:00:24.9]} 37... Rb2 {[%clk 0:00:03.6]} 38. Rd3+
{[%clk 0:00:24.4]} 38... Ke7 {[%clk 0:00:03.7]} 39. Bg6 {[%clk 0:00:23]} 39...
Rc2 {[%clk 0:00:02.9]} 40. Re3+ {[%clk 0:00:22.9]} 40... Kd6 {[%clk 0:00:02.4]}
41. Kg4 {[%clk 0:00:22.4]} 1-0

[Event "Early-Titled-Tuesday-Blitz-March-26-2024"]
[Site "Chess.com"]
[Date "2024.03.26"]
[Round "6"]
[White "ural58"]
[Black "Kotlyar_K"]
[Result "1-0"]
[WhiteElo "2471"]
[BlackElo "2586"]
[TimeControl "180+1"]
[EndTime "9:04:53 PDT"]
[Termination "ural58 won by resignation"]

1. e4 {[%clk 0:03:00.9]} 1... e5 {[%clk 0:02:59.7]} 2. Nf3 {[%clk 0:02:56.6]}
2... Nc6 {[%clk 0:02:59.9]} 3. Bc4 {[%clk 0:02:56.4]} 3... Nf6 {[%clk
0:02:59.6]} 4. Ng5 {[%clk 0:02:56.3]} 4... d5 {[%clk 0:02:56.2]} 5. exd5 {[%clk
0:02:56.3]} 5... Na5 {[%clk 0:02:54.9]} 6. Bb5+ {[%clk 0:02:55.9]} 6... c6
{[%clk 0:02:52.8]} 7. dxc6 {[%clk 0:02:55.9]} 7... bxc6 {[%clk 0:02:52.5]} 8.
Bd3 {[%clk 0:02:53]} 8... Nd5 {[%clk 0:02:31.1]} 9. h4 {[%clk 0:02:46.9]} 9...
Be7 {[%clk 0:02:30.7]} 10. Qh5 {[%clk 0:01:09.8]} 10... g6 {[%clk 0:02:24.8]}
11. Qf3 {[%clk 0:01:07.5]} 11... Bxg5 {[%clk 0:02:08.7]} 12. hxg5 {[%clk
0:01:07.1]} 12... Qxg5 {[%clk 0:02:09.1]} 13. Nc3 {[%clk 0:01:04.6]} 13... Bg4
{[%clk 0:02:03]} 14. Qg3 {[%clk 0:01:01.4]} 14... Qf4 {[%clk 0:01:13.5]} 15.
Qxf4 {[%clk 0:00:55.8]} 15... Nxf4 {[%clk 0:01:11.7]} 16. Bf1 {[%clk 0:00:55.5]}
16... O-O {[%clk 0:01:10]} 17. d3 {[%clk 0:00:55.3]} 17... Nd5 {[%clk
0:01:08.7]} 18. Ne4 {[%clk 0:00:42.6]} 18... Bf5 {[%clk 0:00:54.2]} 19. Bd2
{[%clk 0:00:39.1]} 19... Nb7 {[%clk 0:00:53]} 20. O-O-O {[%clk 0:00:24.1]} 20...
Rab8 {[%clk 0:00:39.7]} 21. Be2 {[%clk 0:00:23.2]} 21... Bxe4 {[%clk 0:00:37.4]}
22. dxe4 {[%clk 0:00:22.7]} 22... Nf6 {[%clk 0:00:35.2]} 23. f3 {[%clk
0:00:21.7]} 23... Nc5 {[%clk 0:00:30]} 24. Bg5 {[%clk 0:00:20.9]} 24... Nfd7
{[%clk 0:00:24.6]} 25. b3 {[%clk 0:00:21]} 25... f6 {[%clk 0:00:18.4]} 26. Be3
{[%clk 0:00:20.6]} 26... Rfd8 {[%clk 0:00:13.5]} 27. Bc4+ {[%clk 0:00:21.5]}
27... Kg7 {[%clk 0:00:12.6]} 28. Bh6+ {[%clk 0:00:21.4]} 28... Kh8 {[%clk
0:00:13.1]} 29. Be3 {[%clk 0:00:20.4]} 29... Kg7 {[%clk 0:00:13.5]} 30. Rd2
{[%clk 0:00:20.1]} 30... Nb7 {[%clk 0:00:10.8]} 31. Rhd1 {[%clk 0:00:19.1]}
31... Nb6 {[%clk 0:00:11.1]} 32. Ba6 {[%clk 0:00:17.5]} 32... Rxd2 {[%clk
0:00:09.9]} 33. Rxd2 {[%clk 0:00:17.6]} 33... Nd8 {[%clk 0:00:09]} 34. a4 {[%clk
0:00:14.9]} 34... Kf7 {[%clk 0:00:07.7]} 35. a5 {[%clk 0:00:14.5]} 35... Nc8
{[%clk 0:00:06.6]} 36. Rxd8 {[%clk 0:00:13.5]} 36... Ke7 {[%clk 0:00:05.5]} 37.
Rxc8 {[%clk 0:00:13.5]} 1-0

[Event "Early-Titled-Tuesday-Blitz-March-26-2024"]
[Site "Chess.com"]
[Date "2024.03.26"]
[Round "6"]
[White "Zhani-Z"]
[Black "SirStrateg"]
[Result "0-1"]
[WhiteElo "2256"]
[BlackElo "2626"]
[TimeControl "180+1"]
[EndTime "9:04:58 PDT"]
[Termination "SirStrateg won on time"]

1. e4 {[%clk 0:03:00.9]} 1... e6 {[%clk 0:03:00.1]} 2. d4 {[%clk 0:02:58.1]}
2... d5 {[%clk 0:02:58.2]} 3. Nd2 {[%clk 0:02:57.7]} 3... Nc6 {[%clk 0:02:58.3]}
4. Ngf3 {[%clk 0:02:57.2]} 4... Nf6 {[%clk 0:02:57.8]} 5. e5 {[%clk 0:02:57]}
5... Nd7 {[%clk 0:02:58]} 6. Be2 {[%clk 0:02:57.3]} 6... f6 {[%clk 0:02:57.1]}
7. exf6 {[%clk 0:02:57.8]} 7... Qxf6 {[%clk 0:02:57.4]} 8. Nf1 {[%clk
0:02:58.1]} 8... Bd6 {[%clk 0:02:55.1]} 9. Ne3 {[%clk 0:02:57.8]} 9... b6 {[%clk
0:02:54.2]} 10. O-O {[%clk 0:02:52.5]} 10... Bb7 {[%clk 0:02:53.4]} 11. c3
{[%clk 0:02:42.2]} 11... h6 {[%clk 0:02:49.7]} 12. b4 {[%clk 0:02:41.1]} 12...
a5 {[%clk 0:02:48.1]} 13. b5 {[%clk 0:02:36.7]} 13... Ne7 {[%clk 0:02:48.5]} 14.
Bd3 {[%clk 0:02:29.6]} 14... O-O-O {[%clk 0:02:47.4]} 15. Ng4 {[%clk 0:02:23]}
15... Qf7 {[%clk 0:02:44.2]} 16. Re1 {[%clk 0:02:19.6]} 16... Nf6 {[%clk
0:02:42.6]} 17. Nge5 {[%clk 0:02:18.7]} 17... Qg8 {[%clk 0:02:41.1]} 18. Qc2
{[%clk 0:01:49.6]} 18... g5 {[%clk 0:02:36.3]} 19. c4 {[%clk 0:01:38.6]} 19...
dxc4 {[%clk 0:02:21.4]} 20. Bxc4 {[%clk 0:01:38.8]} 20... Ned5 {[%clk
0:02:19.3]} 21. Nc6 {[%clk 0:01:29.9]} 21... Re8 {[%clk 0:02:13.5]} 22. Nfe5
{[%clk 0:01:29.8]} 22... Rh7 {[%clk 0:01:47.1]} 23. Bd2 {[%clk 0:01:26.7]} 23...
Nb4 {[%clk 0:01:39.5]} 24. Qb3 {[%clk 0:01:20.1]} 24... Nfd5 {[%clk 0:01:36.7]}
25. a3 {[%clk 0:01:15.9]} 25... Nxc6 {[%clk 0:01:33.7]} 26. bxc6 {[%clk
0:01:15.2]} 26... Ba8 {[%clk 0:01:34.2]} 27. Qb5 {[%clk 0:01:06.8]} 27... Bxe5
{[%clk 0:01:09.1]} 28. dxe5 {[%clk 0:01:06.1]} 28... Kd8 {[%clk 0:01:02.4]} 29.
Rad1 {[%clk 0:00:57.2]} 29... Ke7 {[%clk 0:01:02.6]} 30. Bxa5 {[%clk 0:00:20.3]}
30... bxa5 {[%clk 0:01:00.2]} 31. Bxd5 {[%clk 0:00:20.5]} 31... exd5 {[%clk
0:01:00.4]} 32. Rxd5 {[%clk 0:00:20.4]} 32... Kf8 {[%clk 0:00:55.8]} 33. Rd7
{[%clk 0:00:11.9]} 33... Rhe7 {[%clk 0:00:51.4]} 34. e6 {[%clk 0:00:06.4]} 34...
Qg6 {[%clk 0:00:45.4]} 35. Qe5 {[%clk 0:00:04.9]} 35... Kg8 {[%clk 0:00:33.1]}
36. Rxe7 {[%clk 0:00:04.4]} 36... Rxe7 {[%clk 0:00:32.9]} 37. Rd1 {[%clk
0:00:04.8]} 37... Bxc6 {[%clk 0:00:32.4]} 38. Rd8+ {[%clk 0:00:04.9]} 38... Be8
{[%clk 0:00:32.7]} 39. h3 {[%clk 0:00:04.7]} 39... Qxe6 {[%clk 0:00:32.7]} 40.
Qd4 {[%clk 0:00:01.6]} 40... Qe1+ {[%clk 0:00:25.4]} 41. Kh2 {[%clk 0:00:01.1]}
41... Qe5+ {[%clk 0:00:25.6]} 0-1